fUSD/lending_fUSD_20260415
["ID","MTS","AMOUNT","RATE_DAILY","PERIOD"]
[420507634,1776182438132,999.26554803,0.000165,30]
[420507635,1776182466673,500.0,0.000165,30]
[420507636,1776182467120,500.0,0.000165,30]
[420507637,1776182467570,500.0,0.000165,30]
[420507638,1776182468035,331.55738706,0.000165,30]
[420507644,1776182511609,684.97235546,0.0001,120]
[420507678,1776183032294,-180.48,9.812e-05,2]
[420507679,1776183032323,-69.52,0.00010253,2]
[420507691,1776183035673,-3294.25915965,0.00010253,2]
[420507692,1776183035685,-210.60663321,0.00010673,2]
[420507693,1776183035695,-500.0,0.00010673,2]
[420507694,1776183035706,-500.0,0.00010673,2]
[420507695,1776183035716,-544.94025023,0.00010673,2]
[420507696,1776183035727,-200.0,0.00010694,2]
[420507697,1776183035737,-151.0,0.00010694,2]
[420507698,1776183035747,-161.77898451,0.00010694,2]
[420507699,1776183035758,-151.0,0.00010694,2]
[420507700,1776183035768,-150.0,0.00010698,2]
[420507701,1776183035779,-1200.0,0.00010698,2]
[420507702,1776183035789,-196.9599,0.00010699,2]
[420507703,1776183035800,-500.0,0.00010699,2]
[420507704,1776183035811,-500.0,0.00010699,2]
[420507705,1776183035821,-500.0,0.00010699,2]
[420507706,1776183035831,-500.0,0.00010699,2]
[420507707,1776183035842,-500.0,0.00010699,2]
[420507708,1776183035853,-602.5479957,0.00010699,2]
[420507709,1776183035863,-500.0,0.00010699,2]
[420507710,1776183035873,-500.0,0.00010699,2]
[420507711,1776183035883,-500.0,0.00010699,2]
[420507712,1776183035894,-500.0,0.00010699,2]
[420507713,1776183035904,-500.0,0.00010699,2]
[420507714,1776183035915,-500.0,0.00010699,2]
[420507715,1776183035925,-500.0,0.00010699,2]
[420507716,1776183035935,-500.0,0.00010699,2]
[420507717,1776183035945,-500.0,0.00010699,2]
[420507718,1776183035956,-500.0,0.00010699,2]
[420507719,1776183035966,-500.0,0.00010699,2]
[420507720,1776183035976,-500.0,0.00010699,2]
[420507721,1776183035988,-500.0,0.00010699,2]
[420507722,1776183035999,-500.0,0.00010699,2]
[420507723,1776183036010,-500.0,0.00010699,2]
[420507724,1776183036021,-500.0,0.00010699,2]
[420507725,1776183036033,-500.0,0.00010699,2]
[420507726,1776183036044,-500.0,0.00010699,2]
[420507727,1776183036057,-500.0,0.00010699,2]
[420507728,1776183036067,-500.0,0.00010699,2]
[420507729,1776183036078,-458.74638839,0.00010699,2]
[420507730,1776183036090,-500.0,0.00010699,2]
[420507731,1776183036101,-500.0,0.00010699,2]
[420507732,1776183036111,-500.0,0.00010699,2]
[420507733,1776183036124,-131628.32418158,0.000107,2]
[420507734,1776183036140,-57308.90860764,0.000107,2]
[420507735,1776183036153,-42093.30150767,0.000107,2]
[420507736,1776183036167,-9184.1731688,0.000107,2]
[420507737,1776183036207,-113082.0,0.000107,2]
[420507781,1776183040241,-285.98407295,0.00010699,2]
[420507782,1776183040254,-2424.08988808,0.000107,2]
[420507783,1776183040274,-29646.81871981,0.000107,2]
[420507784,1776183040287,-5000.0,0.00010793,2]
[420507785,1776183040297,-420.91602701,0.00010857,2]
[420507786,1776183040307,-17508.58196648,0.000111,2]
[420507787,1776183040321,-200.0,0.00011242,2]
[420507788,1776183040330,-17508.58196647,0.00011633,2]
[420507789,1776183040341,-1680.0,0.00011768,2]
[420507790,1776183040351,-4968.87966245,0.000119,2]
[420507791,1776183040365,-500.0,0.00011924,2]
[420507792,1776183040375,-17508.58196647,0.00012167,2]
[420507793,1776183040386,-150.0,0.000122,2]
[420507794,1776183040396,-2000.0,0.00012331,2]
[420507795,1776183040406,-150.0,0.00012484,2]
[420507796,1776183040416,-150.0,0.000126,2]
[420507797,1776183040426,-150.0,0.000126,2]
[420507798,1776183040436,-150.0,0.000126,2]
[420507799,1776183040445,-150.0,0.000126,2]
[420507800,1776183040456,-150.0,0.000126,2]
[420507801,1776183040466,-150.0,0.000126,2]
[420507802,1776183040477,-150.0,0.000126,2]
[420507803,1776183040486,-150.0,0.000126,2]
[420507804,1776183040496,-17508.58196647,0.000127,2]
[420507805,1776183040505,-150.0,0.00012756,2]
[420507806,1776183040515,-150.0,0.000128,2]
[420507807,1776183040524,-150.0,0.00012833,2]
[420507808,1776183040534,-150.0,0.00012911,2]
[420507809,1776183040544,-524.0,0.00012945,2]
[420507810,1776183040554,-150.0,0.0001295,2]
[420507811,1776183040564,-150.0,0.0001295,2]
[420507812,1776183040574,-150.0,0.00013,2]
[420507813,1776183040584,-167.73,0.00013014,2]
[420507814,1776183040594,-150.0,0.00013067,2]
[420507815,1776183040603,-150.0,0.00013067,2]
[420507816,1776183040613,-150.0,0.000132,2]
[420507817,1776183040623,-150.0,0.00013222,2]
[420507818,1776183040633,-17508.58196647,0.00013233,2]
[420507819,1776183040643,-150.0,0.000133,2]
[420507820,1776183040653,-150.0,0.000133,2]
[420507821,1776183040662,-150.0,0.000133,2]
[420507822,1776183040672,-150.0,0.000133,2]
[420507823,1776183040682,-150.0,0.000133,2]
[420507825,1776183040692,-150.0,0.00013378,2]
[420507828,1776183040702,-150.0,0.000134,2]
[420507831,1776183040712,-190.8386,0.000134,2]
[420507833,1776183040722,-200.0,0.00013491,2]
[420507835,1776183040732,-1000.0,0.000135,2]
[420507837,1776183040742,-507.0,0.000135,2]
[420507839,1776183040752,-150.0,0.00013533,2]
[420507840,1776183040761,-150.0,0.00013533,2]
[420507842,1776183040771,-150.0,0.000136,2]
[420507843,1776183040781,-150.0,0.0001365,2]
[420507844,1776183040791,-150.0,0.0001365,2]
[420507845,1776183040800,-150.0,0.0001366,2]
[420507846,1776183040810,-150.0,0.00013689,2]
[420507847,1776183040820,-500.0,0.00013698,2]
[420507848,1776183040830,-166.66,0.00013699,2]
[420507849,1776183040840,-200.0,0.00013699,2]
[420507850,1776183040850,-717.81,0.00013699,2]
[420507851,1776183040860,-500.0,0.00013699,2]
[420507852,1776183040870,-500.0,0.00013699,2]
[420507853,1776183040880,-500.0,0.00013699,2]
[420507854,1776183040889,-246.53905558,0.00013699,2]
[420507855,1776183040899,-1575.0,0.000137,2]
[420507856,1776183040909,-900.0,0.000137,5]
[420507857,1776183040919,-216.196914,0.00013737,7]
[420507858,1776183040928,-160.0,0.00013737,7]
[420507859,1776183040939,-330.645476,0.00013737,7]
[420507860,1776183040949,-501.290953,0.00013737,7]
[420507861,1776183040959,-160.0,0.00013737,7]
[420507862,1776183040968,-1880.334884,0.00013737,7]
[420507863,1776183040979,-3600.669769,0.00013737,7]
[420507864,1776183040989,-160.0,0.00013737,7]
[420507865,1776183040999,-996.13827,0.00013737,7]
[420507866,1776183041009,-1832.276541,0.00013737,7]
[420507867,1776183041019,-160.0,0.00013737,7]
[420507868,1776183041029,-866.850792,0.00013737,7]
[420507869,1776183041039,-1573.701585,0.00013737,7]
[420507870,1776183041049,-150.0,0.00013767,2]
[420507871,1776183041059,-17508.58196647,0.00013767,2]
[420507872,1776183041068,-291.55558848,0.000138,2]
[420507873,1776183041078,-150.0,0.000138,2]
[420507874,1776183041088,-1900.0,0.000138,5]
[420507875,1776183041098,-5245.98227163,0.00013811,2]
[420507876,1776183041107,-450.0,0.00013836,7]
[420507877,1776183041118,-166.66,0.00013836,2]
[420507878,1776183041128,-150.0,0.00013844,2]
[420507879,1776183041137,-150.0,0.0001385,2]
[420507880,1776183041147,-3600.113,0.00013864,2]
[420507881,1776183041157,-179.867,0.00013864,2]
[420507882,1776183041166,-1966.50021326,0.00013867,2]
[420507883,1776183041176,-2000.0,0.00013872,2]
[420507884,1776183041186,-2900.0,0.000139,5]
[420507885,1776183041196,-415.05091943,0.0001392,2]
[420507886,1776183041206,-367.27065959,0.00013924,2]
[420507887,1776183041215,-160.0,0.00013937,2]
[420507888,1776183041225,-1592.75,0.00013945,14]
[420507889,1776183041234,-500.0,0.00013963,2]
[420507890,1776183041246,-500.0,0.00013963,2]
[420507891,1776183041256,-500.0,0.00013963,2]
[420507892,1776183041266,-500.0,0.00013963,2]
[420507893,1776183041276,-500.0,0.00013963,2]
[420507894,1776183041290,-500.0,0.00013963,2]
[420507895,1776183041300,-500.0,0.00013963,2]
[420507896,1776183041310,-500.0,0.00013963,2]
[420507897,1776183041321,-500.0,0.00013963,2]
[420507898,1776183041338,-500.0,0.00013963,2]
[420507899,1776183041349,-500.0,0.00013963,2]
[420507900,1776183041361,-500.0,0.00013963,2]
[420507901,1776183041377,-500.0,0.00013963,2]
[420507902,1776183041387,-500.0,0.00013963,2]
[420507903,1776183041399,-500.0,0.00013963,2]
[420507904,1776183041411,-500.0,0.00013963,2]
[420507905,1776183041424,-500.0,0.00013963,2]
[420507906,1776183041439,-500.0,0.00013963,2]
[420507907,1776183041451,-500.0,0.00013963,2]
[420507908,1776183041464,-500.0,0.00013963,2]
[420507909,1776183041476,-500.0,0.00013963,2]
[420507910,1776183041486,-500.0,0.00013963,2]
[420507911,1776183041503,-500.0,0.00013963,2]
[420507912,1776183041513,-500.0,0.00013963,2]
[420507913,1776183041528,-623.55595166,0.00013963,2]
[420507914,1776183041543,-500.0,0.00013963,2]
[420507915,1776183041556,-500.0,0.00013963,2]
[420507916,1776183041574,-500.0,0.00013963,2]
[420507917,1776183041587,-500.0,0.00013963,2]
[420507918,1776183041597,-500.0,0.00013963,2]
[420507919,1776183041615,-500.0,0.00013963,2]
[420507920,1776183041627,-500.0,0.00013963,2]
[420507921,1776183041637,-500.0,0.00013963,2]
[420507922,1776183041660,-500.0,0.00013963,2]
[420507923,1776183041672,-500.0,0.00013963,2]
[420507924,1776183041684,-500.0,0.00013963,2]
[420507925,1776183041702,-378.03861837,0.00013963,2]
[420507926,1776183041715,-500.0,0.00013963,2]
[420507927,1776183041735,-500.0,0.00013963,2]
[420507928,1776183041764,-500.0,0.00013963,2]
[420507929,1776183041779,-500.0,0.00013963,2]
[420507930,1776183041824,-613.68,0.00013963,2]
[420507931,1776183041936,-500.0,0.00013963,2]
[420507932,1776183041978,-500.0,0.00013963,2]
[420507933,1776183042009,-500.0,0.00013963,2]
[420507934,1776183042022,-500.0,0.00013963,2]
[420507935,1776183042038,-500.0,0.00013963,2]
[420507936,1776183042057,-173786.73421323,0.00013964,2]
[420507946,1776183043692,-9886.08281422,0.00013964,2]
[420507947,1776183043739,-12691.27105455,0.00013964,2]
[420507948,1776183043749,-270.74155764,0.00013964,2]
[420507949,1776183043759,-3625.605236,0.00013964,2]
[420507950,1776183043769,-9631.7311258,0.00013964,2]
[420507951,1776183043779,-151.0,0.00013964,2]
[420507952,1776183043789,-489.0,0.00013964,3]
[420507953,1776183043799,-232.0,0.00013964,3]
[420507954,1776183043809,-14195.75102601,0.00013964,2]
[420507955,1776183044133,-3751.94947151,0.00013964,2]
[420507956,1776183044171,-403.46388559,0.00013964,2]
[420507957,1776183044266,-670598.7876068,0.00013964,2]
[420507958,1776183044680,-801.3342474,0.00013964,2]
[420507959,1776183044701,-35469.58535392,0.00013964,2]
[420507960,1776183044713,-152.0,0.00013967,7]
[420507961,1776183044732,-500.0,0.00013973,2]
[420507962,1776183044746,-500.0,0.00013973,2]
[420507963,1776183044757,-500.0,0.00013973,2]
[420507964,1776183044771,-500.0,0.00013973,2]
[420507965,1776183044783,-500.0,0.00013973,2]
[420507966,1776183044798,-500.0,0.00013973,2]
[420507967,1776183044811,-500.0,0.00013973,2]
[420507968,1776183044821,-500.0,0.00013973,2]
[420507969,1776183044836,-213.61545232,0.00013973,2]
[420507970,1776183044851,-166.66,0.00013973,2]
[420507971,1776183044862,-152.0,0.00013985,7]
[420507972,1776183044876,-152.0,0.00013996,7]
[420507973,1776183044886,-152.0,0.00013996,7]
[420507974,1776183044899,-152.0,0.00013996,7]
[420507975,1776183044913,-212.126925,0.00014,2]
[420507976,1776183044923,-150.0,0.00014,2]
[420507977,1776183044933,-150.0,0.00014,2]
[420507978,1776183044946,-150.0,0.00014,2]
[420507979,1776183044961,-150.0,0.00014,2]
[420507980,1776183044970,-150.0,0.00014,2]
[420507981,1776183044981,-150.0,0.00014,2]
[420507982,1776183044990,-150.0,0.00014,2]
[420507983,1776183045005,-500.0,0.00014016,2]
[420507984,1776183045015,-500.0,0.00014016,2]
[420507985,1776183045024,-500.0,0.00014016,2]
[420507986,1776183045034,-500.0,0.00014016,2]
[420507987,1776183045049,-500.0,0.00014016,2]
[420507988,1776183045062,-500.0,0.00014016,2]
[420507989,1776183045072,-500.0,0.00014016,2]
[420507990,1776183045082,-500.0,0.00014016,2]
[420507991,1776183045097,-500.0,0.00014016,2]
[420507992,1776183045107,-35949.18110736,0.00014017,2]
[420507993,1776183045142,-1566.50162416,0.00014017,2]
[420507994,1776183045158,-47375.5995253,0.00014017,2]
[420507999,1776183045994,-961.05676293,0.00014017,2]
[420508000,1776183046020,-1588.36849833,0.00014017,2]
[420508001,1776183046226,-2494.03937868,0.00014017,2]
[420508002,1776183046402,-32611.06801617,0.00014017,2]
[420508003,1776183046521,-1136.82271602,0.00014017,2]
[420508015,1776183154850,1300.0,4.11e-05,30]
[420508016,1776183246187,465.0,4.11e-05,3]
[420508017,1776183246493,465.0,5.052e-05,3]
[420508018,1776183247577,465.0,5.993e-05,3]
[420508019,1776183247648,465.0,6.935e-05,3]
[420508020,1776183247699,465.0,7.876e-05,3]
[420508021,1776183253280,156.0,4.11e-05,3]
[420508022,1776183253850,156.0,6.346e-05,3]
[420508023,1776183254033,156.0,8.583e-05,3]
[420508027,1776183306921,349.0,8.583e-05,3]
[420508028,1776183306982,221.0,8.583e-05,3]
[420508029,1776183313905,156.0,8.583e-05,3]
[420508030,1776183362100,-573.0,0.00017,120]
[420508031,1776183369519,331.0,8.583e-05,3]
[420508032,1776183377242,156.0,8.583e-05,3]
[420508033,1776183430993,282.0,8.583e-05,3]
[420508034,1776183435941,157.0,8.583e-05,3]
[420508035,1776183487968,165.0,8.583e-05,3]
[420508036,1776183490429,157.0,8.583e-05,3]
[420508037,1776183548835,292.0,8.583e-05,3]
[420508038,1776183556430,157.0,8.583e-05,3]
[420508040,1776183589465,200.0,8e-05,2]
[420508041,1776183613383,210.0,8.583e-05,3]
[420508042,1776183613474,278.0,8.583e-05,3]
[420508046,1776183667576,264.0,8.583e-05,3]
[420508049,1776183729189,251.0,8.583e-05,3]
[420508050,1776183787329,238.0,8.583e-05,3]
[420508051,1776183847572,226.0,8.583e-05,3]
[420508052,1776183907894,215.0,8.583e-05,3]
[420508053,1776183909520,199.0,8.583e-05,3]
[420508054,1776183967018,245.0,8.583e-05,3]
[420508056,1776184027017,232.0,8.583e-05,3]
[420508057,1776184031443,155.0,8.583e-05,3]
[420508058,1776184089601,221.0,8.583e-05,3]
[420508059,1776184147807,210.0,8.583e-05,3]
[420508066,1776184211792,205.0,8.583e-05,3]
[420508067,1776184211870,199.0,8.583e-05,3]
[420508081,1776184232092,-205.0,9.289e-05,3]
[420508082,1776184232102,-199.0,9.289e-05,3]
[420508083,1776184232111,-5000.0,9.642e-05,2]
[420508084,1776184232120,-205.0,9.995e-05,3]
[420508085,1776184232130,-199.0,9.995e-05,3]
[420508086,1776184232139,-1200.0,0.00010217,2]
[420508087,1776184232148,-300.0,0.00010217,2]
[420508088,1776184232158,-300.0,0.00010217,2]
[420508089,1776184232167,-5000.0,0.00010218,2]
[420508090,1776184232177,-1668.65552389,0.0001025,2]
[420508091,1776184232186,-5000.0,0.00010307,2]
[420508092,1776184232196,-5000.0,0.00010307,2]
[420508093,1776184232208,-5000.0,0.00010307,2]
[420508094,1776184232218,-199.0,0.00010701,3]
[420508095,1776184232229,-205.0,0.00010701,3]
[420508096,1776184232239,-1680.0,0.00011239,2]
[420508097,1776184232249,-3318.55288318,0.0001135,2]
[420508098,1776184232259,-199.0,0.00011408,3]
[420508099,1776184232269,-205.0,0.00011408,3]
[420508100,1776184232279,-150.0,0.000121,2]
[420508101,1776184232289,-199.0,0.00012114,3]
[420508102,1776184232299,-205.0,0.00012114,3]
[420508103,1776184232308,-221.0,0.00012171,2]
[420508104,1776184232318,-151.0,0.00012183,2]
[420508105,1776184232327,-151.0,0.00012312,2]
[420508106,1776184232337,-15838.36,0.00012358,2]
[420508107,1776184232347,-2351.0,0.00012363,2]
[420508108,1776184232357,-500.0,0.00012591,2]
[420508109,1776184232367,-1415.8,0.00012702,2]
[420508110,1776184232377,-354.18,0.00012723,2]
[420508111,1776184232386,-150.0,0.00012723,2]
[420508112,1776184232395,-150.0,0.00012723,2]
[420508113,1776184232405,-150.0,0.00012723,2]
[420508114,1776184232414,-150.0,0.00012723,2]
[420508115,1776184232424,-150.0,0.00012723,2]
[420508116,1776184232434,-150.0,0.00012723,2]
[420508117,1776184232443,-150.0,0.00012723,2]
[420508118,1776184232453,-150.0,0.00012723,2]
[420508119,1776184232462,-150.0,0.00012723,2]
[420508120,1776184232472,-11428.75,0.00012776,2]
[420508121,1776184232481,-152.0,0.00012788,7]
[420508122,1776184232491,-152.0,0.00012788,7]
[420508123,1776184232501,-152.0,0.00012788,7]
[420508124,1776184232511,-199.0,0.0001282,3]
[420508125,1776184232520,-205.0,0.0001282,3]
[420508126,1776184232530,-1062.32194628,0.00012823,2]
[420508127,1776184232539,-250.0,0.00012855,2]
[420508128,1776184232550,-1396.0,0.00012875,2]
[420508129,1776184232560,-1592.0,0.000129,2]
[420508130,1776184232570,-354.18,0.00012997,2]
[420508131,1776184232580,-250.0,0.00013,2]
[420508132,1776184232590,-150.0,0.00013006,2]
[420508133,1776184232600,-1600.0,0.00013013,2]
[420508134,1776184232610,-540.0,0.00013013,2]
[420508135,1776184232619,-152.0,0.00013141,7]
[420508136,1776184232628,-150.0,0.00013195,2]
[420508137,1776184232638,-354.18,0.00013271,2]
[420508138,1776184232648,-150.0,0.00013289,2]
[420508139,1776184232658,-190.828,0.000133,2]
[420508140,1776184232667,-3240.0,0.00013425,2]
[420508141,1776184232683,-150.0,0.0001343,2]
[420508142,1776184232697,-150.0,0.0001343,2]
[420508143,1776184232708,-150.0,0.0001343,2]
[420508144,1776184232722,-506.0,0.000135,2]
[420508145,1776184232732,-199.0,0.00013526,3]
[420508146,1776184232741,-205.0,0.00013526,3]
[420508147,1776184232750,-354.18,0.00013545,2]
[420508148,1776184232760,-160.0,0.00013561,2]
[420508149,1776184232770,-150.0,0.00013572,2]
[420508150,1776184232780,-3292.0,0.00013599,2]
[420508151,1776184232790,-150.0,0.00013666,2]
[420508152,1776184232800,-3899.0,0.00013699,2]
[420508153,1776184232809,-219.10270936,0.000137,2]
[420508154,1776184232819,-1300.0,0.000137,5]
[420508155,1776184232829,-4976.82,0.0001378,2]
[420508156,1776184232839,-2700.0,0.000138,5]
[420508157,1776184232849,-7164.68892016,0.000138,2]
[420508158,1776184232858,-354.22,0.00013819,2]
[420508159,1776184232868,-1619.37121931,0.00013834,2]
[420508160,1776184232882,-1554.22878069,0.00013834,2]
[420508161,1776184232891,-150.0,0.00013854,2]
[420508162,1776184232902,-400.32039567,0.00013873,2]
[420508163,1776184232911,-354.08854204,0.00013873,2]
[420508164,1776184232921,-500.0,0.00013873,2]
[420508165,1776184232933,-500.0,0.00013873,2]
[420508166,1776184232944,-500.0,0.00013873,2]
[420508167,1776184232954,-474.23747807,0.00013873,2]
[420508168,1776184232965,-500.0,0.00013873,2]
[420508169,1776184232976,-192.37243226,0.00013873,2]
[420508170,1776184232992,-307.62756774,0.00013873,2]
[420508171,1776184233003,-0.66449568,0.00013873,2]
[420508192,1776184239475,-499.33550432,0.00013873,2]
[420508194,1776184239494,-500.0,0.00013873,2]
[420508196,1776184239505,-500.0,0.00013873,2]
[420508198,1776184239541,-500.0,0.00013873,2]
[420508200,1776184239558,-500.0,0.00013873,2]
[420508202,1776184239591,-500.0,0.00013873,2]
[420508204,1776184239639,-500.0,0.00013873,2]
[420508206,1776184239664,-500.0,0.00013873,2]
[420508208,1776184239686,-500.0,0.00013873,2]
[420508210,1776184239721,-500.0,0.00013873,2]
[420508212,1776184239757,-500.0,0.00013873,2]
[420508214,1776184239778,-500.0,0.00013873,2]
[420508216,1776184239815,-500.0,0.00013873,2]
[420508218,1776184239839,-500.0,0.00013873,2]
[420508220,1776184239874,-154.69663502,0.00013873,2]
[420508222,1776184239885,-500.0,0.00013873,2]
[420508224,1776184239900,-500.0,0.00013873,2]
[420508226,1776184239920,-500.0,0.00013873,2]
[420508228,1776184239930,-500.0,0.00013873,2]
[420508230,1776184239953,-500.0,0.00013873,2]
[420508232,1776184239965,-500.0,0.00013873,2]
[420508234,1776184239980,-500.0,0.00013873,2]
[420508235,1776184239992,-500.0,0.00013873,2]
[420508237,1776184240003,-500.0,0.00013873,2]
[420508239,1776184240016,-377.20742173,0.00013873,2]
[420508242,1776184240031,-122.79257827,0.00013873,2]
[420508243,1776184240042,-500.0,0.00013873,2]
[420508245,1776184240054,-500.0,0.00013873,2]
[420508247,1776184240064,-5.58329198,0.00013873,2]
[420508249,1776184240104,-494.41670802,0.00013873,2]
[420508251,1776184240114,-409.70720965,0.00013873,2]
[420508253,1776184240275,-0.1372152,0.00013744,7]
[420508254,1776184240289,-151.8627848,0.00013744,7]
[420508255,1776184240300,-90.29279035,0.00013873,2]
[420508256,1776184240311,-436.53717709,0.00013873,2]
[420508257,1776184240324,-63.46282291,0.00013873,2]
[420508258,1776184240335,-500.0,0.00013873,2]
[420508259,1776184240346,-105.64546005,0.00013873,2]
[420508260,1776184240360,-394.35453995,0.00013873,2]
[420508261,1776184240371,-500.0,0.00013873,2]
[420508262,1776184240387,-500.0,0.00013873,2]
[420508263,1776184240400,-392.26971519,0.00013873,2]
[420508264,1776184240414,-34.27043018,0.00013873,2]
[420508265,1776184240430,-465.72956982,0.00013873,2]
[420508266,1776184240441,-304.81221969,0.00013873,2]
[420508269,1776184240693,-195.18778031,0.00013873,2]
[420508271,1776184240707,-500.0,0.00013873,2]
[420508273,1776184240724,-500.0,0.00013873,2]
[420508275,1776184240733,-257.11445194,0.00013873,2]
[420508286,1776184240871,-242.88554806,0.00013873,2]
[420508287,1776184240881,-158.06774018,0.00013873,2]
[420508465,1776184243460,-989.4901327,0.00013573,2]
[420508467,1776184243478,-341.93225982,0.00013873,2]
[420508469,1776184243492,-500.0,0.00013873,2]
[420508471,1776184243514,-500.0,0.00013873,2]
[420508473,1776184243524,-500.0,0.00013873,2]
[420508475,1776184243539,-500.0,0.00013873,2]
[420508476,1776184243565,-500.0,0.00013873,2]
[420508477,1776184243575,-500.0,0.00013873,2]
[420508478,1776184243596,-500.0,0.00013873,2]
[420508479,1776184243611,-500.0,0.00013873,2]
[420508480,1776184243624,-500.0,0.00013873,2]
[420508481,1776184243646,-500.0,0.00013873,2]
[420508482,1776184243657,-500.0,0.00013873,2]
[420508483,1776184243670,-500.0,0.00013873,2]
[420508484,1776184243690,-500.0,0.00013873,2]
[420508485,1776184243702,-500.0,0.00013873,2]
[420508486,1776184243716,-455.0,0.00013873,2]
[420508487,1776184243742,-500.0,0.00013873,2]
[420508488,1776184243761,-46963.24741228,0.00013874,2]
[420508493,1776184243955,-1027.23724345,0.00013874,2]
[420508617,1776184246182,-370.27145567,0.000107,3]
[420508669,1776184247007,-2989.72854433,0.000107,3]
[420508671,1776184247018,-5532.0,0.000109,5]
[420508674,1776184247035,-21134.33594427,0.00013874,2]
[420508675,1776184247051,-4100.0,0.000139,5]
[420508677,1776184247066,-1610.24894548,0.000139,2]
[420508680,1776184247087,-500.0,0.00013966,2]
[420508682,1776184247103,-500.0,0.00013966,2]
[420508683,1776184247115,-500.0,0.00013966,2]
[420508685,1776184247131,-500.0,0.00013966,2]
[420508687,1776184247146,-500.0,0.00013966,2]
[420508689,1776184247158,-500.0,0.00013966,2]
[420508691,1776184247175,-500.0,0.00013966,2]
[420508693,1776184247191,-500.0,0.00013966,2]
[420508695,1776184247218,-500.0,0.00013966,2]
[420508697,1776184247227,-500.0,0.00013966,2]
[420508699,1776184247265,-500.0,0.00013966,2]
[420508701,1776184247277,-541.94358684,0.00013966,2]
[420508703,1776184247300,-162.9721605,0.00013972,2]
[420508705,1776184247313,-1964.7321722,0.00013972,2]
[420508708,1776184247327,-500.0,0.00013973,2]
[420508710,1776184247359,-500.0,0.00013973,2]
[420508712,1776184247374,-500.0,0.00013973,2]
[420508714,1776184247444,-500.0,0.00013973,2]
[420508716,1776184247536,-500.0,0.00013973,2]
[420508717,1776184247552,-223.22455227,0.00013973,2]
[420508720,1776184247587,-600.0,0.00013973,2]
[420508721,1776184247612,-600.0,0.00013973,2]
[420508723,1776184247651,-304.10724002,0.00013973,2]
[420508725,1776184247714,-500.0,0.00013973,2]
[420508727,1776184247753,-175.0002057,0.00013974,2]
[420508729,1776184247779,-57519.6612151,0.00013974,2]
[420508731,1776184247791,-12112.8840589,0.00013974,2]
[420508733,1776184247804,-3145.352901,0.00013974,2]
[420508735,1776184247817,-111776.5675094,0.00013974,2]
[420508737,1776184247827,-155.8965354,0.00014,2]
[420508739,1776184247839,-200.0,0.00014017,2]
[420508741,1776184247855,-500.0,0.00014017,2]
[420508743,1776184247868,-1575.0,0.0001402,2]
[420508745,1776184247879,-7164.68892012,0.00014033,2]
[420508746,1776184247890,-2500.0,0.00014047,2]
[420508748,1776184247902,-1500.0,0.00014047,2]
[420508751,1776184247912,-345.87576615,0.0001405,2]
[420508752,1776184247924,-414.29508424,0.0001405,2]
[420508755,1776184247933,-314.80342254,0.00014057,2]
[420508756,1776184247945,-166.66,0.0001411,2]